fUSD/lending_fUSD_20250124
["ID","MTS","AMOUNT","RATE_DAILY","PERIOD"]
[350212795,1737696634123,-500.0,0.00019442,2]
[350212796,1737696634133,-500.0,0.00019442,2]
[350212797,1737696634142,-500.0,0.00019442,2]
[350212798,1737696634151,-1000.0,0.00019442,30]
[350212799,1737696634160,-500.0,0.00019442,2]
[350212800,1737696634169,-500.0,0.00019442,2]
[350212801,1737696634180,-500.0,0.00019442,2]
[350212802,1737696634188,-500.0,0.00019442,2]
[350212803,1737696634198,-500.0,0.00019442,2]
[350212804,1737696634207,-626.44643064,0.00019442,2]
[350212805,1737696634216,-500.0,0.00019442,2]
[350212806,1737696634225,-500.0,0.00019442,2]
[350212807,1737696634235,-500.0,0.00019442,2]
[350212808,1737696634245,-1128.29,0.00019442,2]
[350212809,1737696634254,-500.0,0.00019442,2]
[350212810,1737696634263,-500.0,0.00019442,2]
[350212811,1737696634272,-500.0,0.00019442,2]
[350212812,1737696634281,-500.0,0.00019442,2]
[350212813,1737696634291,-584.62,0.00019442,2]
[350212814,1737696634300,-500.0,0.00019442,2]
[350212815,1737696634311,-500.0,0.00019442,2]
[350212816,1737696634320,-500.0,0.00019442,2]
[350212817,1737696634330,-1879.1,0.00019442,2]
[350212818,1737696634339,-500.0,0.00019442,2]
[350212819,1737696634349,-563.38,0.00019442,2]
[350212820,1737696634359,-500.0,0.00019442,2]
[350212821,1737696634368,-632.99,0.00019442,2]
[350212822,1737696634376,-500.0,0.00019442,2]
[350212823,1737696634386,-611.38,0.00019442,2]
[350212824,1737696634395,-500.0,0.00019442,2]
[350212825,1737696634404,-500.0,0.00019442,2]
[350212826,1737696634413,-500.0,0.00019442,2]
[350212827,1737696634423,-500.0,0.00019442,2]
[350212828,1737696634433,-500.0,0.00019442,2]
[350212829,1737696634442,-690.08,0.00019442,2]
[350212830,1737696634452,-500.0,0.00019442,2]
[350212831,1737696634460,-923.61,0.00019442,2]
[350212832,1737696634470,-500.0,0.00019442,2]
[350212833,1737696634478,-500.0,0.00019442,2]
[350212834,1737696634489,-500.0,0.00019442,2]
[350212835,1737696634499,-1275.98,0.00019442,2]
[350212836,1737696634508,-500.0,0.00019442,2]
[350212837,1737696634518,-717.56,0.00019442,2]
[350212838,1737696634527,-500.0,0.00019442,2]
[350212839,1737696634538,-500.0,0.00019442,2]
[350212840,1737696634547,-500.0,0.00019442,2]
[350212841,1737696634556,-500.0,0.00019442,2]
[350212842,1737696634566,-500.0,0.00019442,2]
[350212843,1737696634575,-500.0,0.00019442,2]
[350212844,1737696634585,-500.0,0.00019442,2]
[350212845,1737696634594,-772.27,0.00019442,2]
[350212846,1737696634603,-1276.2,0.00019442,2]
[350212847,1737696634613,-500.0,0.00019442,2]
[350212848,1737696634622,-500.0,0.00019442,2]
[350212849,1737696634631,-1523.34,0.00019442,2]
[350212850,1737696634640,-500.0,0.00019442,2]
[350212851,1737696634650,-1607.45,0.00019442,2]
[350212852,1737696634659,-1499.27,0.00019442,2]
[350212853,1737696634668,-500.0,0.00019442,2]
[350212854,1737696634677,-500.0,0.00019442,2]
[350212855,1737696634687,-1293.45,0.00019442,2]
[350212856,1737696634695,-500.0,0.00019442,2]
[350212857,1737696634704,-500.0,0.00019442,2]
[350212858,1737696634714,-500.0,0.00019442,2]
[350212859,1737696634724,-500.0,0.00019442,2]
[350212860,1737696634734,-500.0,0.00019442,2]
[350212861,1737696634743,-500.0,0.00019442,2]
[350212862,1737696634752,-500.0,0.00019442,2]
[350212863,1737696634761,-500.0,0.00019442,2]
[350212864,1737696634771,-500.0,0.00019442,2]
[350212865,1737696634781,-500.0,0.00019442,2]
[350212866,1737696634791,-1830.33,0.00019442,2]
[350212867,1737696634800,-500.0,0.00019442,2]
[350212868,1737696634810,-500.0,0.00019442,2]
[350212869,1737696634819,-500.0,0.00019442,2]
[350212870,1737696634828,-500.0,0.00019442,2]
[350212871,1737696634837,-611.98288892,0.00019442,2]
[350212872,1737696634846,-752.7,0.00019442,2]
[350212873,1737696634855,-500.0,0.00019442,2]
[350212874,1737696634864,-500.0,0.00019442,2]
[350212875,1737696634874,-500.0,0.00019442,2]
[350212876,1737696634883,-500.0,0.00019442,2]
[350212877,1737696634891,-500.0,0.00019442,2]
[350212878,1737696634901,-500.0,0.00019442,2]
[350212879,1737696634911,-500.0,0.00019442,2]
[350212880,1737696634921,-500.0,0.00019442,2]
[350212881,1737696634932,-1075.22,0.00019442,2]
[350212882,1737696634941,-500.0,0.00019442,2]
[350212883,1737696634952,-500.0,0.00019442,2]
[350212884,1737696634964,-500.0,0.00019442,2]
[350212885,1737696634974,-500.0,0.00019442,2]
[350212886,1737696634983,-538.77,0.00019442,2]
[350212887,1737696634993,-500.0,0.00019442,2]
[350212888,1737696635004,-500.0,0.00019442,2]
[350212889,1737696635015,-500.0,0.00019442,2]
[350212890,1737696635023,-500.0,0.00019442,2]
[350212891,1737696635033,-615.94846111,0.00019442,2]
[350212892,1737696635042,-506.44004138,0.00019442,2]
[350212893,1737696635051,-506.04,0.00019442,2]
[350212894,1737696635062,-500.0,0.00019442,2]
[350212895,1737696635072,-500.0,0.00019442,2]
[350212896,1737696635083,-500.0,0.00019442,2]
[350212897,1737696635092,-735.33,0.00019442,2]
[350212898,1737696635102,-500.0,0.00019442,2]
[350212899,1737696635111,-500.0,0.00019442,2]
[350212900,1737696635121,-500.0,0.00019442,2]
[350212901,1737696635130,-500.0,0.00019442,2]
[350212902,1737696635139,-1685.75,0.00019442,2]
[350212903,1737696635148,-500.0,0.00019442,2]
[350212904,1737696635157,-500.0,0.00019442,2]
[350212905,1737696635166,-500.0,0.00019442,2]
[350212906,1737696635175,-2730.01,0.00019442,2]
[350212907,1737696635187,-500.0,0.00019442,2]
[350212908,1737696635196,-500.0,0.00019442,2]
[350212909,1737696635206,-957.19,0.00019442,2]
[350212910,1737696635215,-500.0,0.00019442,2]
[350212911,1737696635224,-500.82,0.00019442,2]
[350212912,1737696635232,-500.0,0.00019442,2]
[350212913,1737696635242,-500.0,0.00019442,2]
[350212914,1737696635251,-718.87,0.00019442,2]
[350212915,1737696635260,-500.0,0.00019442,2]
[350212916,1737696635269,-500.0,0.00019442,2]
[350212917,1737696635278,-500.0,0.00019442,2]
[350212918,1737696635287,-500.0,0.00019442,2]
[350212919,1737696635296,-500.0,0.00019442,2]
[350212920,1737696635305,-332.4552681,0.00019442,2]
[350212921,1737696635314,-500.0,0.00019442,2]
[350212922,1737696635324,-500.0,0.00019442,2]
[350212923,1737696635333,-500.0,0.00019442,2]
[350212924,1737696635342,-756.7,0.00019442,2]
[350212925,1737696635351,-500.0,0.00019442,2]
[350212926,1737696635361,-500.0,0.00019442,2]
[350212927,1737696635370,-500.0,0.00019442,2]
[350212928,1737696635379,-500.0,0.00019442,2]
[350212929,1737696635388,-500.0,0.00019442,2]
[350212930,1737696635397,-500.0,0.00019442,2]
[350212931,1737696635406,-500.0,0.00019442,2]
[350212932,1737696635416,-500.0,0.00019443,2]
[350212933,1737696635426,-500.0,0.00019443,2]
[350212934,1737696635438,-500.0,0.00019443,2]
[350212935,1737696635447,-500.0,0.00019443,2]
[350212936,1737696635456,-549.04300947,0.00019443,2]
[350212937,1737696635466,-500.0,0.00019443,2]
[350212938,1737696635475,-516.69072469,0.00019443,2]
[350212939,1737696635484,-500.0,0.00019443,2]
[350212940,1737696635493,-521.72835398,0.00019443,2]
[350212941,1737696635502,-512.70096986,0.00019443,2]
[350212942,1737696635512,-500.0,0.00019443,2]
[350212943,1737696635521,-500.0,0.00019443,2]
[350212944,1737696635531,-500.0,0.00019443,2]
[350212945,1737696635540,-500.0,0.00019443,2]
[350212946,1737696635549,-500.0,0.00019443,2]
[350212947,1737696635558,-1000.0,0.00019443,2]
[350212948,1737696635568,-500.0,0.00019443,2]
[350212949,1737696635577,-500.0,0.00019443,2]
[350212950,1737696635586,-560.28,0.00019443,2]
[350212951,1737696635595,-707.54,0.00019443,2]
[350212952,1737696635604,-500.0,0.00019444,2]
[350212953,1737696635614,-500.0,0.00019444,2]
[350212954,1737696635623,-500.0,0.00019444,2]
[350212955,1737696635632,-500.0,0.00019444,2]
[350212956,1737696635641,-500.0,0.00019444,2]
[350212957,1737696635650,-3000.0,0.00019445,2]
[350212958,1737696635659,-475.07167991,0.00019452,2]
[350212959,1737696635668,-872.82045931,0.00019462,2]
[350212960,1737696635679,-984.31016465,0.00019462,2]
[350212961,1737696635688,-502.54826994,0.00019473,2]
[350212962,1737696635697,-408.42144047,0.00019473,2]
[350212963,1737696635706,-500.0,0.00019473,2]
[350212964,1737696635715,-172.6,0.00019488,2]
[350212965,1737696635724,-700.0,0.0001949,2]
[350212966,1737696635734,-700.0,0.0001949,2]
[350212967,1737696635743,-700.0,0.0001949,2]
[350212968,1737696635752,-700.0,0.0001949,2]
[350212969,1737696635761,-700.0,0.0001949,2]
[350212970,1737696635770,-700.0,0.0001949,2]
[350212971,1737696635779,-700.0,0.0001949,2]
[350212972,1737696635788,-700.0,0.0001949,2]
[350212973,1737696635797,-700.0,0.0001949,2]
[350212974,1737696635806,-700.0,0.0001949,2]
[350212975,1737696635815,-95329.82043691,0.0001949,2]
[350212976,1737696635839,-330.47369348,0.00019439,2]
[350212977,1737696635848,-135.95560691,0.0001949,2]
[350212978,1737696635859,-2721.717,0.0001949,2]
[350212979,1737696636068,-1842.82074556,0.0001949,2]
[350212980,1737696636085,-492.46695084,0.00019439,2]
[350212981,1737696636094,-19804.74299497,0.0001949,2]
[350212982,1737696636112,-3052.36146577,0.0001949,2]
[350212983,1737696636123,-500.0,0.00019493,2]
[350212984,1737696636132,-259.81609995,0.00019493,2]
[350212985,1737696636141,-500.0,0.00019493,2]
[350212986,1737696636150,-500.0,0.00019493,2]
[350212987,1737696636159,-383.30525968,0.00019493,2]
[350212988,1737696636168,-277.71961347,0.00019493,2]
[350212989,1737696636177,-465.53437038,0.00019493,2]
[350212990,1737696636187,-500.0,0.00019493,2]
[350212991,1737696636196,-383.31272331,0.00019493,2]
[350212992,1737696636207,-116.68727669,0.00019493,2]
[350212993,1737696636217,-500.0,0.00019493,2]
[350212994,1737696636226,-500.0,0.00019493,2]
[350212995,1737696636235,-500.0,0.00019493,2]
[350212996,1737696636245,-500.0,0.00019493,2]
[350212997,1737696636255,-500.0,0.00019493,2]
[350212998,1737696636265,-500.0,0.00019493,2]
[350212999,1737696636274,-500.0,0.00019493,2]
[350213000,1737696636284,-200.0,0.00019493,2]
[350213001,1737696636294,-500.0,0.00019493,2]
[350213002,1737696636304,-410.91632481,0.00019493,2]
[350213003,1737696636314,-500.0,0.00019493,2]
[350213004,1737696636324,-500.0,0.00019493,2]
[350213005,1737696636334,-500.0,0.00019493,2]
[350213006,1737696636343,-506.64150504,0.00019493,2]
[350213007,1737696636352,-500.0,0.00019493,2]
[350213008,1737696636362,-500.0,0.00019493,2]
[350213009,1737696636371,-505.72339674,0.00019493,2]
[350213010,1737696636380,-512.02591586,0.00019493,2]
[350213011,1737696636389,-500.0,0.00019493,2]
[350213012,1737696636398,-513.40165483,0.00019493,2]
[350213013,1737696636407,-500.0,0.00019493,2]
[350213014,1737696636417,-518.12878978,0.00019493,2]
[350213015,1737696636426,-500.0,0.00019493,2]
[350213016,1737696636586,-500.0,0.00019493,2]
[350213017,1737696636596,-500.0,0.00019493,2]
[350213018,1737696636607,-500.0,0.00019493,2]
[350213019,1737696636615,-500.0,0.00019493,2]
[350213020,1737696636625,-500.0,0.00019493,2]
[350213021,1737696636635,-509.33325244,0.00019493,2]
[350213022,1737696636644,-500.0,0.00019493,2]
[350213023,1737696636654,-500.0,0.00019493,2]
[350213024,1737696636663,-510.14220023,0.00019493,2]
[350213025,1737696636672,-466.52301607,0.00019493,2]
[350213026,1737696636683,-500.0,0.00019493,2]
[350213027,1737696636692,-500.0,0.00019493,2]
[350213028,1737696636701,-500.0,0.00019493,2]
[350213029,1737696636712,-500.0,0.00019493,2]
[350213030,1737696636721,-508.37386542,0.00019493,2]
[350213031,1737696636730,-500.0,0.00019493,2]
[350213032,1737696636739,-503.5242647,0.00019493,2]
[350213033,1737696636749,-500.0,0.00019493,2]
[350213034,1737696636758,-500.0,0.00019493,2]
[350213035,1737696636767,-500.0,0.00019493,2]
[350213036,1737696636777,-500.0,0.00019493,2]
[350213037,1737696636786,-505.12762511,0.00019493,2]
[350213038,1737696636797,-500.0,0.00019493,2]
[350213039,1737696636807,-500.0,0.00019493,2]
[350213040,1737696636816,-500.0,0.00019493,2]
[350213041,1737696636826,-500.0,0.00019493,2]
[350213042,1737696636835,-388.76618175,0.00019493,2]
[350213043,1737696636848,-116.2155352,0.00019493,2]
[350213044,1737696636857,-375.97293374,0.00019493,2]
[350213045,1737696636868,-124.02706626,0.00019493,2]
[350213046,1737696636877,-500.0,0.00019493,2]
[350213047,1737696636887,-98.51526947,0.00019493,2]
[350213048,1737696636898,-408.61430916,0.00019493,2]
[350213049,1737696636907,-131.42273797,0.00019493,2]
[350213050,1737696636927,-375.37841664,0.00019493,2]
[350213051,1737696636937,-224.31352452,0.00019493,2]
[350213052,1737696636948,-15.75968822,0.00019493,2]
[350213053,1737696636962,-500.0,0.00019493,2]
[350213054,1737696636972,-500.0,0.00019493,2]
[350213055,1737696636981,-500.0,0.00019493,2]
[350213056,1737696636991,-338.62619317,0.00019493,2]
[350213057,1737696637001,-504.85133365,0.00019493,2]
[350213058,1737696637011,-503.08416968,0.00019493,2]
[350213059,1737696637020,-503.0813738,0.00019493,2]
[350213060,1737696637029,-154.93397335,0.00019493,2]
[350213061,1737696637039,-249.81270552,0.00019493,2]
[350213062,1737696637049,-500.0,0.00019493,2]
[350213063,1737696637058,-152.94581947,0.00019493,2]
[350213064,1737696637067,-502.8545858,0.00019493,2]
[350213065,1737696637077,-500.0,0.00019493,2]
[350213066,1737696637086,-500.0,0.00019493,2]
[350213067,1737696637095,-370.50779479,0.00019493,2]
[350213076,1737696637882,-129.49220521,0.00019493,2]
[350213077,1737696637892,-500.0,0.00019493,2]
[350213078,1737696637902,-370.56541242,0.00019493,2]
[350213079,1737696637914,-138.73630753,0.00019493,2]
[350213080,1737696637923,-500.0,0.00019493,2]
[350213081,1737696637934,-500.0,0.00019493,2]
[350213082,1737696637943,-500.0,0.00019493,2]
[350213083,1737696637952,-500.0,0.00019493,2]
[350213084,1737696637965,-512.41914742,0.00019493,2]
[350213085,1737696637975,-500.0,0.00019493,2]
[350213086,1737696637984,-500.0,0.00019493,2]
[350213087,1737696637994,-500.0,0.00019493,2]
[350213088,1737696638004,-362.55632567,0.00019493,2]
[350213089,1737696638013,-500.0,0.00019493,2]
[350213090,1737696638023,-500.0,0.00019493,2]
[350213091,1737696638032,-500.0,0.00019493,2]
[350213092,1737696638042,-500.0,0.00019493,2]
[350213093,1737696638051,-500.0,0.00019493,2]
[350213094,1737696638060,-500.0,0.00019493,2]
[350213095,1737696638069,-500.0,0.00019493,2]
[350213096,1737696638078,-500.0,0.00019493,2]
[350213097,1737696638088,-509.58870302,0.00019493,2]
[350213098,1737696638098,-507.83316941,0.00019493,2]
[350213099,1737696638106,-500.0,0.00019493,2]
[350213100,1737696638115,-500.0,0.00019493,2]
[350213101,1737696638126,-500.0,0.00019493,2]
[350213102,1737696638136,-500.0,0.00019493,2]
[350213103,1737696638145,-511.99439281,0.00019493,2]
[350213104,1737696638154,-500.0,0.00019493,2]
[350213105,1737696638163,-500.0,0.00019493,2]
[350213106,1737696638172,-502.44612745,0.00019493,2]
[350213107,1737696638181,-500.0,0.00019493,2]
[350213108,1737696638190,-500.0,0.00019493,2]
[350213109,1737696638199,-500.0,0.00019493,2]
[350213110,1737696638209,-500.0,0.00019493,2]
[350213111,1737696638218,-500.0,0.00019493,2]
[350213112,1737696638227,-527.26425344,0.00019493,2]
[350213113,1737696638236,-500.0,0.00019493,2]
[350213114,1737696638246,-548.45947309,0.00019493,2]
[350213115,1737696638255,-500.0,0.00019493,2]
[350213116,1737696638264,-500.0,0.00019493,2]
[350213117,1737696638274,-500.0,0.00019493,2]
[350213118,1737696638283,-500.0,0.00019493,2]
[350213119,1737696638292,-500.0,0.00019493,2]
[350213120,1737696638301,-500.0,0.00019493,2]
[350213121,1737696638311,-204.76063522,0.00019493,2]
[350213123,1737696638319,-500.0,0.00019493,2]
[350213125,1737696638329,-500.0,0.00019493,2]
[350213127,1737696638338,-521.187794,0.00019493,2]
[350213129,1737696638348,-500.0,0.00019493,2]
[350213131,1737696638357,-500.0,0.00019493,2]
[350213133,1737696638365,-500.0,0.00019493,2]
[350213135,1737696638375,-500.0,0.00019493,2]
[350213137,1737696638383,-524.01322791,0.00019493,2]
[350213139,1737696638392,-645.16193314,0.00019493,2]
[350213141,1737696638401,-500.0,0.00019493,2]
[350213143,1737696638411,-500.0,0.00019493,2]
[350213145,1737696638420,-500.0,0.00019493,2]
[350213147,1737696638429,-500.0,0.00019493,2]
[350213149,1737696638438,-500.0,0.00019493,2]
[350213151,1737696638448,-500.0,0.00019493,2]
[350213152,1737696638457,-527.42703281,0.00019493,2]
[350213155,1737696638466,-500.0,0.00019493,2]
[350213156,1737696638475,-500.0,0.00019493,2]
[350213158,1737696638485,-500.0,0.00019493,2]
[350213160,1737696638495,-500.0,0.00019493,2]
[350213162,1737696638504,-311.83463134,0.00019493,2]
[350213164,1737696638513,-500.0,0.00019493,2]
[350213166,1737696638522,-500.0,0.00019493,2]
[350213168,1737696638531,-227.93806593,0.00019493,2]
[350213170,1737696638540,-500.0,0.00019493,2]
[350213172,1737696638550,-182.36526625,0.00019493,2]
[350213174,1737696638559,-503.88226474,0.00019493,2]
[350213176,1737696638568,-500.0,0.00019493,2]
[350213178,1737696638577,-500.0,0.00019493,2]
[350213180,1737696638587,-500.0,0.00019493,2]
[350213182,1737696638596,-500.0,0.00019493,2]
[350213184,1737696638605,-500.0,0.00019493,2]
[350213186,1737696638614,-500.0,0.00019493,2]
[350213188,1737696638623,-514.81684388,0.00019493,2]
[350213190,1737696638633,-500.0,0.00019493,2]
[350213192,1737696638642,-500.0,0.00019493,2]
[350213194,1737696638652,-500.0,0.00019493,2]
[350213196,1737696638661,-500.0,0.00019493,2]
[350213198,1737696638671,-503.57907068,0.00019493,2]
[350213200,1737696638682,-506.78947001,0.00019493,2]
[350213202,1737696638692,-505.60177127,0.00019493,2]
[350213204,1737696638701,-500.0,0.00019493,2]
[350213206,1737696638710,-193.2341255,0.00019493,2]
[350213208,1737696638720,-150.90521612,0.00019493,2]
[350213210,1737696638729,-500.0,0.00019493,2]
[350213212,1737696638738,-500.0,0.00019493,2]
[350213214,1737696638749,-500.0,0.00019493,2]
[350213216,1737696638759,-500.0,0.00019493,2]
[350213218,1737696638768,-500.0,0.00019493,2]
[350213220,1737696638777,-500.0,0.00019493,2]
[350213222,1737696638786,-500.0,0.00019493,2]
[350213224,1737696638795,-500.0,0.00019493,2]
[350213226,1737696638804,-500.0,0.00019493,2]
[350213228,1737696638813,-500.0,0.00019493,2]
[350213230,1737696638823,-317.23170171,0.00019493,2]
[350213232,1737696638833,-647.58290167,0.00019493,2]
[350213234,1737696638841,-500.0,0.00019493,2]
[350213236,1737696638851,-500.0,0.00019493,2]
[350213238,1737696638860,-500.0,0.00019493,2]
[350213240,1737696638869,-500.0,0.00019493,2]
[350213242,1737696638879,-500.0,0.00019493,2]
[350213244,1737696638888,-506.47723261,0.00019493,2]
[350213246,1737696638897,-500.0,0.00019493,2]
[350213248,1737696638906,-500.0,0.00019493,2]
[350213250,1737696638915,-500.0,0.00019493,2]
[350213252,1737696638924,-500.0,0.00019493,2]
[350213254,1737696638936,-500.0,0.00019493,2]
[350213256,1737696638945,-500.0,0.00019493,2]
[350213257,1737696638957,-500.0,0.00019493,2]
[350213260,1737696638967,-500.0,0.00019493,2]
[350213262,1737696638976,-500.0,0.00019493,2]
[350213264,1737696638986,-500.0,0.00019493,2]
[350213266,1737696638995,-500.0,0.00019493,2]
[350213267,1737696639004,-500.0,0.00019493,2]
[350213270,1737696639018,-500.0,0.00019493,2]
[350213271,1737696639027,-500.0,0.00019493,2]
[350213273,1737696639037,-500.0,0.00019493,2]
[350213276,1737696639050,-500.0,0.00019493,2]
[350213278,1737696639059,-246.3044706,0.00019493,2]
[350213280,1737696639068,-500.0,0.00019493,2]
[350213282,1737696639077,-500.0,0.00019493,2]
[350213284,1737696639086,-500.0,0.00019493,2]
[350213286,1737696639095,-500.0,0.00019493,2]
[350213288,1737696639106,-500.0,0.00019493,2]
[350213290,1737696639115,-500.0,0.00019493,2]
[350213292,1737696639124,-592.11684266,0.00019493,2]
[350213294,1737696639133,-540.26,0.00019493,2]
[350213296,1737696639143,-500.0,0.00019493,2]
[350213298,1737696639152,-500.0,0.00019493,2]
[350213300,1737696639161,-249.16620439,0.00019493,2]
[350213301,1737696639170,-500.0,0.00019493,2]
[350213303,1737696639179,-500.0,0.00019493,2]
[350213306,1737696639190,-551.44363588,0.00019493,2]
[350213308,1737696639199,-500.0,0.00019493,2]
[350213309,1737696639208,-644.32582007,0.00019493,2]
[350213312,1737696639218,-500.0,0.00019493,2]
[350213313,1737696639227,-500.0,0.00019493,2]
[350213316,1737696639236,-500.0,0.00019493,2]
[350213317,1737696639246,-500.0,0.00019493,2]
[350213320,1737696639256,-500.0,0.00019493,2]
[350213321,1737696639266,-500.0,0.00019493,2]
[350213323,1737696639275,-500.0,0.00019493,2]
[350213325,1737696639285,-2912.5227244,0.00019495,2]
[350213327,1737696639296,-4948.2952033,0.00019495,2]
[350213329,1737696639305,-690.9624285,0.00019495,2]
[350213331,1737696639314,-165.9444173,0.00019495,2]
[350213333,1737696639323,-9334.0450765,0.00019495,2]
[350213335,1737696639334,-9846.02429515,0.00019498,2]
[350213337,1737696639343,-1006.26165683,0.00019499,5]
[350213339,1737696639353,-500.0,0.00019499,2]
[350213341,1737696639362,-1000.0,0.00019499,2]
[350213343,1737696639372,-1000.0,0.00019499,2]
[350213345,1737696639381,-362.05667704,0.00019499,2]
[350213347,1737696639390,-666.0,0.00019499,2]
[350213349,1737696639399,-179.21073334,0.000195,2]
[350213351,1737696639408,-106890.96227353,0.000195,2]
[350213354,1737696639422,-1454.24614478,0.000195,2]
[350213356,1737696639435,-2023.55,0.000195,2]
[350213358,1737696639446,-3490.54242994,0.000195,2]
[350213360,1737696639457,-693.43710831,0.000195,2]
[350213367,1737696639509,-1109.76612253,0.000195,2]
[350213369,1737696639524,-18575.46799417,0.000195,2]
[350213372,1737696639537,-33512.52943501,0.000195,2]
[350213422,1737696640065,-3018.58188937,0.000195,2]
[350213853,1737696644307,-636.0,0.00019166,2]
[350213856,1737696644317,-88.27750613,0.0001934,2]
[350213859,1737696644328,-1049.8386182,0.0001934,2]
[350213861,1737696644339,-376.01831051,0.0001934,2]
[350213865,1737696644369,-95.86556516,0.0001934,2]
[350213867,1737696644379,-435.37131989,0.00019439,2]
[350213901,1737696644771,-192.84820055,0.00019439,2]
[350213903,1737696644780,-500.0,0.00019439,2]
[350213905,1737696644790,-500.0,0.00019439,2]
[350213907,1737696644799,-500.0,0.00019442,2]
[350213909,1737696644808,-606.62,0.00019442,2]
[350213911,1737696644817,-885.13,0.00019442,2]
[350213913,1737696644826,-500.0,0.00019442,2]
[350213915,1737696644835,-3626.32904732,0.000195,2]
[350213917,1737696644846,-5272.25,0.000195,2]
[350214031,1737696645913,-500.0,0.00019439,2]
[350214033,1737696645922,-500.0,0.00019439,2]
[350214035,1737696645932,-500.0,0.00019493,2]
[350214037,1737696645943,-1665.1860917,0.000195,2]
[350214047,1737696646034,-434.22145291,0.00019439,2]
[350214070,1737696646315,-70.32230209,0.00019439,2]
[350214072,1737696646325,-876.53771741,0.000195,2]
[350214076,1737696646348,-3369.87655691,0.000195,2]
[350214078,1737696646359,-6165.99822737,0.000195,2]
[350214080,1737696646370,-1425.2362751,0.000195,2]
[350215807,1737697043032,-1000.0,0.00018528,2]
[350215808,1737697043056,-167.66,0.00018562,2]
[350215809,1737697043082,-174.45,0.00018562,2]
[350215810,1737697043106,-15284.89,0.00018575,2]
[350215811,1737697166968,-525.87,0.0001658,2]
[350215812,1737697166990,-250.0,0.00018468,2]
[350215813,1737697167010,-369.70482569,0.00018475,2]
[350215814,1737697167032,-1437.02,0.00018575,2]
[350215815,1737697167053,-3211.21541089,0.00018844,2]
[350215816,1737697167078,-525.87,0.00018844,2]
[350215817,1737697167100,-164.4624458,0.0001911,2]
[350215818,1737697167125,-500.0,0.00019164,2]
[350215819,1737697167148,-500.0,0.00019164,2]
[350215820,1737697167171,-567.0,0.00019166,2]
[350215821,1737697167196,-1071.874,0.00019166,2]
[350215822,1737697167217,-91812.98331762,0.0001922,2]
[350215823,1737697245187,-250.0,0.00018508,2]
[350215824,1737697245210,-164.4624459,0.0001911,2]
[350215825,1737697245233,-500.0,0.00019164,2]
[350215826,1737697245256,-150.0,0.00019166,2]
[350215827,1737697245278,-57464.5375541,0.0001922,2]
[350215828,1737697287588,-1564.125,0.0001912,2]
[350215829,1737697287609,-2634.6515,0.0001912,2]
[350215830,1737697287630,-449.71067234,0.00019147,2]
[350215831,1737697287651,-500.0,0.00019164,2]
[350215832,1737697287671,-27516.51282766,0.0001922,2]
[350215833,1737697410226,199.36,0.00012329,2]
[350215834,1737697416580,221.44,0.00010137,2]
[350215836,1737697662243,400.94823827,0.00022004,120]
[350215839,1737697832123,-198.11,0.00016712,2]
[350215840,1737697832133,-221.44,0.00016813,2]
[350215841,1737697832143,-147.07577677,0.000169,2]